fUSD/lending_fUSD_20251123
["ID","MTS","AMOUNT","RATE_DAILY","PERIOD"]
[394774666,1763935845655,-500.0,0.00039077,8]
[394774667,1763935845665,-500.0,0.00039077,8]
[394774668,1763935845674,-500.0,0.00039077,8]
[394774669,1763935845683,-500.0,0.00039077,8]
[394774670,1763935845692,-500.0,0.00039077,8]
[394774671,1763935845703,-500.0,0.00039077,8]
[394774672,1763935845713,-168.0,0.00039126,2]
[394774673,1763935845722,-192.82510555,0.00039134,120]
[394774674,1763935845732,-287.79704332,0.00039144,2]
[394774675,1763935845742,-156.24154383,0.00039153,8]
[394774676,1763935845751,-1000.0,0.00039177,3]
[394774677,1763935845761,-500.0,0.00039178,8]
[394774678,1763935845769,-500.0,0.00039178,8]
[394774679,1763935845778,-500.0,0.00039178,8]
[394774680,1763935845787,-519.33889434,0.00039178,8]
[394774681,1763935845797,-500.0,0.00039178,8]
[394774682,1763935845806,-500.0,0.00039178,8]
[394774683,1763935845815,-500.0,0.00039178,8]
[394774684,1763935845824,-1411.21,0.00039178,30]
[394774685,1763935845833,-1000.0,0.00039187,3]
[394774686,1763935845845,-4778.53899403,0.00039253,2]
[394774687,1763935845854,-1735.06960478,0.00039261,2]
[394774688,1763935845863,-1000.0,0.00039267,3]
[394774689,1763935845873,-1000.0,0.00039334,3]
[394774690,1763935845882,-876.0,0.00039335,20]
[394774691,1763935845891,-500.0,0.00039351,8]
[394774692,1763935845900,-500.0,0.00039351,8]
[394774693,1763935845910,-500.0,0.00039351,8]
[394774694,1763935845919,-583.33474748,0.00039351,8]
[394774695,1763935845928,-500.0,0.00039351,8]
[394774697,1763935845938,-500.0,0.00039351,8]
[394774699,1763935845947,-500.0,0.00039351,8]
[394774701,1763935845956,-500.0,0.00039351,8]
[394774703,1763935845965,-500.0,0.00039351,8]
[394774705,1763935845975,-321.30388114,0.00039351,8]
[394774707,1763935845984,-500.0,0.00039351,8]
[394774709,1763935845993,-537.29,0.00039351,8]
[394774711,1763935846002,-500.0,0.00039351,8]
[394774714,1763935846011,-422.03031783,0.00039351,8]
[394774716,1763935846020,-500.0,0.00039351,2]
[394774718,1763935846029,-594.33352358,0.00039351,8]
[394774719,1763935846038,-500.0,0.00039351,8]
[394774722,1763935846048,-535.92,0.00039351,8]
[394774725,1763935846057,-500.0,0.00039351,8]
[394774726,1763935846066,-500.0,0.00039351,8]
[394774729,1763935846075,-500.0,0.00039351,8]
[394774731,1763935846086,-500.0,0.00039351,8]
[394774733,1763935846095,-359.84066885,0.00039351,8]
[394774735,1763935846104,-1432.38,0.00039351,8]
[394774737,1763935846113,-500.0,0.00039351,8]
[394774738,1763935846122,-1587.79,0.00039351,8]
[394774739,1763935846131,-500.0,0.00039351,8]
[394774740,1763935846141,-500.0,0.00039351,8]
[394774741,1763935846151,-500.0,0.00039351,8]
[394774743,1763935846160,-500.0,0.00039351,8]
[394774744,1763935846168,-500.0,0.00039351,8]
[394774745,1763935846179,-500.0,0.00039351,8]
[394774746,1763935846188,-500.0,0.00039351,8]
[394774747,1763935846198,-500.0,0.00039351,8]
[394774748,1763935846208,-500.0,0.00039351,8]
[394774749,1763935846217,-500.0,0.00039351,8]
[394774750,1763935846227,-500.0,0.00039351,8]
[394774751,1763935846235,-587.71854044,0.00039351,8]
[394774752,1763935846244,-645.30795498,0.00039351,8]
[394774753,1763935846253,-334.84529362,0.00039351,8]
[394774754,1763935846262,-500.0,0.00039351,8]
[394774755,1763935846272,-1000.0,0.00039355,3]
[394774756,1763935846281,-1000.0,0.00039356,7]
[394774757,1763935846290,-500.0,0.00039356,7]
[394774758,1763935846299,-500.0,0.00039356,7]
[394774759,1763935846308,-150.0,0.0003937,2]
[394774760,1763935846317,-150.0,0.0003937,2]
[394774761,1763935846328,-150.0,0.0003937,2]
[394774762,1763935846338,-150.0,0.0003937,2]
[394774763,1763935846348,-150.0,0.0003937,2]
[394774764,1763935846357,-150.0,0.0003937,2]
[394774765,1763935846367,-150.0,0.0003937,2]
[394774766,1763935846376,-150.0,0.0003937,2]
[394774767,1763935846385,-150.48,0.0003937,2]
[394774768,1763935846395,-9222.5672,0.00039376,2]
[394774769,1763935846405,-684.0733,0.00039376,2]
[394774770,1763935846414,-168.51329712,0.000394,13]
[394774771,1763935846423,-175.24033926,0.000394,2]
[394774772,1763935846433,-163.87865574,0.00039425,15]
[394774773,1763935846442,-152.56,0.00039426,2]
[394774774,1763935846451,-1000.0,0.00039451,3]
[394774775,1763935846460,-500.0,0.00039452,14]
[394774776,1763935846469,-500.0,0.00039452,14]
[394774777,1763935846479,-635.89393635,0.00039452,14]
[394774778,1763935846488,-500.0,0.00039452,8]
[394774779,1763935846497,-500.0,0.00039452,8]
[394774780,1763935846506,-500.0,0.00039452,8]
[394774781,1763935846515,-500.0,0.00039452,8]
[394774782,1763935846524,-481.95148613,0.00039452,8]
[394774783,1763935846534,-596.80940884,0.00039452,8]
[394774784,1763935846543,-1411.21,0.00039452,30]
[394774785,1763935846552,-1297.90987,0.00039452,2]
[394774786,1763935846562,-266.56704873,0.00039466,2]
[394774787,1763935846571,-500.0,0.00039475,8]
[394774788,1763935846580,-4068.0,0.00039476,5]
[394774789,1763935846588,-95150.5894438,0.00039476,2]
[394774790,1763935846598,-9514.8461082,0.00039476,2]
[394774791,1763935846607,-287.79704332,0.00039495,2]
[394774792,1763935846616,-2000.0,0.000395,2]
[394774793,1763935846629,-1000.0,0.00039514,3]
[394774794,1763935846638,-4778.53899403,0.00039527,2]
[394774795,1763935846647,-1735.06960478,0.00039534,2]
[394774796,1763935846657,-153.71,0.00039548,2]
[394774797,1763935846667,-1000.0,0.00039614,3]
[394774798,1763935846676,-500.0,0.00039625,8]
[394774799,1763935846686,-500.0,0.00039625,8]
[394774800,1763935846695,-330.5196559,0.00039625,8]
[394774801,1763935846860,-500.0,0.00039625,8]
[394774802,1763935846870,-500.0,0.00039625,8]
[394774803,1763935846879,-612.61198371,0.00039625,8]
[394774804,1763935846888,-500.0,0.00039625,8]
[394774805,1763935846898,-500.0,0.00039625,8]
[394774806,1763935846907,-500.0,0.00039625,8]
[394774807,1763935846917,-537.29,0.00039625,8]
[394774808,1763935846926,-500.0,0.00039625,8]
[394774809,1763935846935,-224.86,0.00039625,2]
[394774810,1763935846944,-500.0,0.00039625,8]
[394774811,1763935846954,-535.92,0.00039625,8]
[394774812,1763935846963,-500.0,0.00039625,8]
[394774813,1763935846971,-500.0,0.00039625,8]
[394774814,1763935846980,-500.0,0.00039625,8]
[394774815,1763935846989,-277.58374067,0.00039625,8]
[394774816,1763935846999,-1432.38,0.00039625,8]
[394774817,1763935847008,-635.74980933,0.00039625,8]
[394774818,1763935847018,-1587.79,0.00039625,8]
[394774819,1763935847027,-500.0,0.00039625,8]
[394774820,1763935847036,-500.0,0.00039625,8]
[394774821,1763935847045,-500.0,0.00039625,8]
[394774822,1763935847054,-500.0,0.00039625,8]
[394774823,1763935847064,-500.0,0.00039625,8]
[394774824,1763935847073,-500.0,0.00039625,8]
[394774825,1763935847082,-500.0,0.00039625,8]
[394774826,1763935847091,-500.0,0.00039625,8]
[394774827,1763935847101,-500.0,0.00039625,8]
[394774828,1763935847111,-500.0,0.00039625,8]
[394774829,1763935847121,-500.0,0.00039625,8]
[394774830,1763935847131,-500.0,0.00039625,8]
[394774831,1763935847140,-737.46005421,0.00039648,2]
[394774832,1763935847150,-175.24033922,0.0003965,2]
[394774833,1763935847159,-622.82,0.00039654,2]
[394774834,1763935847168,-500.0,0.00039686,8]
[394774835,1763935847178,-4829.34764346,0.00039687,15]
[394774836,1763935847187,-578.20924308,0.00039687,15]
[394774837,1763935847196,-578.20924308,0.00039687,15]
[394774838,1763935847206,-500.0,0.00039687,15]
[394774839,1763935847215,-500.0,0.00039687,15]
[394774840,1763935847226,-500.0,0.00039687,15]
[394774841,1763935847235,-500.0,0.00039687,15]
[394774842,1763935847245,-500.0,0.00039687,15]
[394774843,1763935847254,-500.0,0.00039687,15]
[394774844,1763935847263,-500.0,0.00039687,15]
[394774845,1763935847272,-500.0,0.00039687,15]
[394774846,1763935847281,-1500.0,0.00039687,15]
[394774847,1763935847291,-500.0,0.00039687,15]
[394774848,1763935847300,-1500.0,0.00039687,15]
[394774849,1763935847310,-500.0,0.00039687,15]
[394774850,1763935847319,-1500.0,0.00039687,15]
[394774851,1763935847329,-500.0,0.00039687,15]
[394774852,1763935847339,-500.0,0.00039687,15]
[394774853,1763935847348,-1500.0,0.00039687,15]
[394774854,1763935847357,-500.0,0.00039687,15]
[394774855,1763935847366,-500.0,0.00039687,15]
[394774856,1763935847376,-1500.0,0.00039687,15]
[394774857,1763935847385,-500.0,0.00039687,15]
[394774858,1763935847394,-1500.0,0.00039687,15]
[394774859,1763935847403,-553.64373807,0.00039687,15]
[394774860,1763935847412,-500.0,0.00039687,15]
[394774861,1763935847421,-629.86713444,0.00039687,15]
[394774862,1763935847431,-574.12855637,0.00039687,15]
[394774863,1763935847440,-500.0,0.00039687,15]
[394774864,1763935847449,-360.9454803,0.00039687,30]
[394774865,1763935847458,-500.0,0.00039687,15]
[394774866,1763935847467,-643.0260714,0.00039687,15]
[394774867,1763935847476,-250.0,0.00039687,15]
[394774868,1763935847485,-500.0,0.00039687,15]
[394774869,1763935847494,-250.0,0.00039687,15]
[394774870,1763935847503,-500.0,0.00039687,15]
[394774871,1763935847512,-250.0,0.00039687,15]
[394774872,1763935847521,-500.0,0.00039687,15]
[394774873,1763935847530,-250.0,0.00039687,15]
[394774874,1763935847539,-500.0,0.00039687,15]
[394774875,1763935847548,-267.9696451,0.00039687,15]
[394774876,1763935847558,-500.0,0.00039687,15]
[394774877,1763935847567,-500.0,0.00039687,15]
[394774878,1763935847575,-620.0,0.00039687,15]
[394774879,1763935847585,-642.94,0.00039687,15]
[394774880,1763935847594,-666.72878,0.00039687,15]
[394774881,1763935847603,-620.0,0.00039687,15]
[394774882,1763935847612,-398.00583644,0.00039687,15]
[394774883,1763935847622,-500.0,0.00039687,15]
[394774884,1763935847634,-500.0,0.00039687,15]
[394774885,1763935847643,-500.0,0.00039687,15]
[394774886,1763935847653,-500.0,0.00039687,15]
[394774887,1763935847663,-500.0,0.00039687,15]
[394774888,1763935847672,-500.0,0.00039687,15]
[394774889,1763935847681,-500.0,0.00039687,15]
[394774890,1763935847690,-500.0,0.00039687,15]
[394774891,1763935847700,-500.0,0.00039687,15]
[394774892,1763935847711,-500.0,0.00039687,15]
[394774893,1763935847721,-500.0,0.00039687,15]
[394774894,1763935847730,-500.0,0.00039687,15]
[394774895,1763935847739,-500.0,0.00039687,15]
[394774896,1763935847747,-500.0,0.00039687,15]
[394774897,1763935847757,-500.0,0.00039687,15]
[394774898,1763935847765,-500.0,0.00039687,15]
[394774899,1763935847775,-1000.0,0.00039687,2]
[394774900,1763935847784,-1000.0,0.00039687,3]
[394774901,1763935847793,-200.0,0.00039688,2]
[394774902,1763935847809,-1247.0,0.00039688,7]
[394774903,1763935847822,-1247.0,0.00039688,7]
[394774904,1763935847832,-500.0,0.00039726,8]
[394774905,1763935847841,-500.0,0.00039726,8]
[394774906,1763935847851,-500.0,0.00039726,8]
[394774907,1763935847860,-215.43879574,0.00039726,8]
[394774908,1763935847869,-1411.21,0.00039726,30]
[394774909,1763935847879,-876.0,0.00039732,20]
[394774910,1763935847888,-500.625,0.0003977,2]
[394774911,1763935847898,-4778.53899403,0.00039802,15]
[394774912,1763935847908,-1735.06960478,0.00039807,2]
[394774913,1763935847917,-287.79704332,0.00039846,2]
[394774914,1763935847927,-500.0,0.00039899,8]
[394774915,1763935847936,-500.0,0.00039899,8]
[394774916,1763935847946,-500.0,0.00039899,8]
[394774917,1763935847956,-500.0,0.00039899,8]
[394774918,1763935847971,-500.0,0.00039899,8]
[394774919,1763935847980,-500.0,0.00039899,8]
[394774920,1763935847990,-500.0,0.00039899,8]
[394774921,1763935848000,-537.29,0.00039899,8]
[394774922,1763935848009,-500.0,0.00039899,8]
[394774923,1763935848019,-500.0,0.00039899,8]
[394774924,1763935848028,-535.92,0.00039899,8]
[394774925,1763935848038,-500.0,0.00039899,8]
[394774926,1763935848048,-500.0,0.00039899,8]
[394774927,1763935848058,-500.0,0.00039899,8]
[394774928,1763935848067,-1432.38,0.00039899,8]
[394774929,1763935848077,-1587.79,0.00039899,8]
[394774930,1763935848091,-500.0,0.00039899,8]
[394774931,1763935848102,-500.0,0.00039899,8]
[394774932,1763935848112,-445.57256651,0.00039899,8]
[394774933,1763935848123,-500.0,0.00039899,8]
[394774934,1763935848134,-500.0,0.00039899,8]
[394774935,1763935848144,-500.0,0.00039899,8]
[394774936,1763935848155,-500.0,0.00039899,8]
[394774937,1763935848165,-500.0,0.00039899,8]
[394774938,1763935848175,-500.0,0.00039899,8]
[394774939,1763935848186,-500.0,0.00039899,8]
[394774940,1763935848195,-246.43452734,0.00039899,8]
[394774941,1763935848207,-500.0,0.00039899,8]
[394774942,1763935848216,-175.24033922,0.000399,2]
[394774943,1763935848226,-163.87865574,0.00039916,15]
[394774944,1763935848237,-500.0,0.00039924,120]
[394774945,1763935848247,-1000.0,0.00039957,2]
[394774946,1763935848257,-500.0,0.0003996,8]
[394774947,1763935848267,-239.84119403,0.00039999,30]
[394774948,1763935848278,-391.48606357,0.0004,8]
[394774949,1763935848287,-500.0,0.0004,8]
[394774950,1763935848298,-500.0,0.0004,8]
[394774951,1763935848307,-9081.24302024,0.0004,2]
[394774952,1763935848317,-1411.21,0.0004,30]
[394774953,1763935848327,-150.0,0.0004,90]
[394774954,1763935848337,-4778.53899403,0.00040076,15]
[394774955,1763935848346,-1735.06960478,0.0004008,15]
[394774956,1763935848356,-876.0,0.0004013,20]
[394774957,1763935848366,-175.24033922,0.0004015,2]
[394774958,1763935848376,-500.0,0.00040173,8]
[394774959,1763935848385,-150.78151254,0.00040173,8]
[394774960,1763935848395,-500.0,0.00040173,8]
[394774961,1763935848404,-632.45654694,0.00040173,8]
[394774962,1763935848414,-500.0,0.00040173,8]
[394774963,1763935848423,-500.0,0.00040173,8]
[394774964,1763935848433,-500.0,0.00040173,8]
[394774965,1763935848446,-537.29,0.00040173,8]
[394774966,1763935848455,-500.0,0.00040173,8]
[394774967,1763935848465,-500.0,0.00040173,8]
[394774968,1763935848475,-535.92,0.00040173,8]
[394774969,1763935848484,-500.0,0.00040173,8]
[394774970,1763935848494,-500.0,0.00040173,8]
[394774971,1763935848503,-500.0,0.00040173,8]
[394774972,1763935848514,-1432.38,0.00040173,8]
[394774973,1763935848523,-1587.79,0.00040173,8]
[394774974,1763935848533,-500.0,0.00040173,8]
[394774975,1763935848542,-500.0,0.00040173,8]
[394774976,1763935848551,-500.0,0.00040173,8]
[394774977,1763935848560,-500.0,0.00040173,8]
[394774978,1763935848570,-500.0,0.00040173,8]
[394774979,1763935848579,-500.0,0.00040173,8]
[394774980,1763935848589,-619.1702192,0.00040173,8]
[394774981,1763935848599,-417.68898614,0.00040173,8]
[394774982,1763935848609,-500.0,0.00040173,8]
[394774983,1763935848620,-500.0,0.00040173,8]
[394774984,1763935848633,-1000.0,0.00040178,7]
[394774985,1763935848644,-500.0,0.00040178,7]
[394774986,1763935848655,-287.79704332,0.00040197,28]
[394774987,1763935848666,-500.0,0.00040234,8]
[394774988,1763935848675,-2297.42032219,0.00040268,15]
[394774989,1763935848684,-500.0,0.00040273,8]
[394774990,1763935848693,-500.0,0.00040273,8]
[394774991,1763935848705,-1411.21,0.00040274,30]
[394774992,1763935848715,-300.0,0.00040286,2]
[394774993,1763935848724,-150.0,0.00040286,2]
[394774994,1763935848733,-150.0,0.00040286,2]
[394774995,1763935848743,-322.77,0.00040292,2]
[394774996,1763935848755,-1601.0,0.00040332,2]
[394774997,1763935848764,-822.0,0.00040332,2]
[394774998,1763935848774,-1256.0,0.00040332,2]
[394774999,1763935848783,-659.0,0.00040332,2]
[394775000,1763935848794,-180.523,0.00040332,2]
[394775001,1763935848803,-252.0,0.00040332,2]
[394775002,1763935848812,-561.0,0.00040332,2]
[394775003,1763935848822,-2659.0,0.00040332,2]
[394775004,1763935848831,-4778.53899403,0.00040351,15]
[394775005,1763935848840,-1735.06960478,0.00040354,15]
[394775006,1763935848849,-175.24033922,0.000404,2]
[394775007,1763935848859,-1010.0,0.000404,7]
[394775008,1763935848869,-163.87865574,0.00040408,15]
[394775009,1763935848878,-527.03747122,0.00040447,8]
[394775010,1763935848887,-500.0,0.00040447,8]
[394775011,1763935848897,-500.0,0.00040447,8]
[394775012,1763935848907,-500.0,0.00040447,8]
[394775013,1763935848918,-466.60755809,0.00040447,8]
[394775014,1763935848927,-537.29,0.00040447,8]
[394775015,1763935848936,-500.0,0.00040447,8]
[394775016,1763935848945,-500.0,0.00040447,8]
[394775017,1763935848955,-535.92,0.00040447,8]
[394775018,1763935848964,-310.26815117,0.00040447,8]
[394775019,1763935848973,-500.0,0.00040447,8]
[394775020,1763935848983,-500.0,0.00040447,8]
[394775021,1763935848993,-1432.38,0.00040447,8]
[394775022,1763935849002,-1587.79,0.00040447,8]
[394775023,1763935849012,-500.0,0.00040447,8]
[394775024,1763935849021,-500.0,0.00040447,8]
[394775025,1763935849030,-500.0,0.00040447,8]
[394775026,1763935849041,-500.0,0.00040447,8]
[394775027,1763935849051,-500.0,0.00040447,8]
[394775028,1763935849061,-500.0,0.00040447,8]
[394775029,1763935849071,-500.0,0.00040447,8]
[394775030,1763935849080,-500.0,0.00040447,8]
[394775031,1763935849096,-540.0,0.00040473,5]
[394775032,1763935849106,-558.11596788,0.00040508,8]
[394775033,1763935849115,-876.0,0.00040527,20]
[394775034,1763935849124,-500.0,0.00040547,8]
[394775035,1763935849133,-500.0,0.00040547,8]
[394775036,1763935849143,-1411.21,0.00040548,30]
[394775037,1763935849152,-287.79704332,0.00040549,28]
[394775038,1763935849161,-4778.53899403,0.00040625,15]
[394775039,1763935849171,-1735.06960478,0.00040627,15]
[394775040,1763935849181,-175.24033922,0.0004065,2]
[394775041,1763935849190,-1135.1415597,0.00040658,120]
[394775042,1763935849199,-200.0,0.00040672,20]
[394775043,1763935849210,-200.566,0.00040712,7]
[394775044,1763935849219,-500.0,0.00040721,8]
[394775045,1763935849229,-500.0,0.00040721,8]
[394775046,1763935849238,-254.79556212,0.00040721,8]
[394775047,1763935849248,-537.29,0.00040721,8]
[394775048,1763935849257,-561.09127088,0.00040721,8]
[394775049,1763935849267,-500.0,0.00040721,8]
[394775050,1763935849276,-535.92,0.00040721,8]
[394775051,1763935849286,-500.0,0.00040721,8]
[394775052,1763935849295,-500.0,0.00040721,8]
[394775053,1763935849306,-1432.38,0.00040721,8]
[394775054,1763935849316,-1587.79,0.00040721,8]
[394775055,1763935849325,-500.0,0.00040721,8]
[394775056,1763935849334,-500.0,0.00040721,8]
[394775057,1763935849344,-500.0,0.00040721,8]
[394775058,1763935849353,-500.0,0.00040721,8]
[394775059,1763935849363,-500.0,0.00040721,8]
[394775060,1763935849372,-500.0,0.00040721,8]
[394775061,1763935849382,-500.0,0.00040721,8]
[394775062,1763935849391,-224.96444457,0.00040721,8]
[394775063,1763935849401,-500.0,0.00040794,8]
[394775064,1763935849410,-1106.2529,0.00040795,3]
[394775065,1763935849419,-1162.92743579,0.00040795,3]
[394775066,1763935849599,-166.66,0.00036307,30]
[394775067,1763935849609,-166.66,0.00037071,30]
[394775068,1763935849618,-166.66,0.00037835,30]
[394775069,1763935849631,-19.99207399,0.000386,30]
[394775070,1763935849643,-146.66792601,0.000386,30]
[394775071,1763935849652,-207.12207398,0.00040795,3]
[394775072,1763935849664,-312.30651832,0.00040795,3]
[394775073,1763935849675,-317.64397191,0.00040795,3]
[394775074,1763935849685,-300.240533,0.00040802,102]
[394775075,1763935849695,-500.0,0.00040821,8]
[394775076,1763935849706,-500.0,0.00040821,8]
[394775077,1763935849715,-706.41106177,0.00040822,30]
[394775078,1763935849728,-704.79893823,0.00040822,30]
[394775079,1763935849737,-211.53687075,0.00040875,13]
[394775080,1763935849748,-67.07991348,0.00040875,13]
[394775081,1763935849759,-144.45695724,0.00040875,13]
[394775082,1763935849768,-211.53687072,0.00040875,13]
[394775083,1763935849777,-175.24033922,0.000409,2]
[394775084,1763935849786,-56.46583282,0.000409,120]
[394775085,1763935849798,-331.73562542,0.000409,120]
[394775086,1763935849807,-1735.06960478,0.000409,15]
[394775087,1763935849815,-163.87865574,0.000409,15]
[394775088,1763935849824,-1061.96016539,0.000409,15]
[394775089,1763935849840,-166.66,0.00039364,30]
[394775090,1763935849849,-3716.57882864,0.000409,15]
[394775091,1763935849858,-287.79704332,0.000409,28]
[394775092,1763935849867,-3049.26362323,0.000409,2]
[394775093,1763935849876,-1576.491737,0.000409,2]
[394775094,1763935849885,-186.90707516,0.000409,2]
[394775095,1763935849895,-1100.0,0.000409,7]
[394775096,1763935849904,-876.0,0.00040924,20]
[394775097,1763935849913,-211.53687072,0.00040942,13]
[394775098,1763935849922,-2.81711939,0.00040958,120]
[394775099,1763935849933,-1997.18288061,0.00040958,120]
[394775100,1763935849942,-2000.0,0.00040958,120]
[394775101,1763935849951,-2000.0,0.00040958,120]
[394775102,1763935849960,-2000.0,0.00040958,120]
[394775103,1763935849969,-2000.0,0.00040958,120]
[394775104,1763935849978,-2000.0,0.00040958,120]
[394775105,1763935849987,-2000.0,0.00040958,120]
[394775106,1763935849996,-1533.668,0.00040958,120]
[394775107,1763935850005,-1000.0,0.00040958,120]
[394775108,1763935850014,-1000.0,0.00040958,120]
[394775109,1763935850023,-1000.0,0.00040958,120]
[394775110,1763935850032,-1000.0,0.00040958,120]
[394775111,1763935850041,-1000.0,0.00040958,120]
[394775112,1763935850050,-1000.0,0.00040958,120]
[394775113,1763935850062,-1000.0,0.00040958,120]
[394775114,1763935850071,-1000.0,0.00040958,120]
[394775115,1763935850079,-622.189,0.00040958,120]
[394775116,1763935850089,-1000.0,0.00040958,30]
[394775117,1763935850098,-1000.0,0.00040958,30]
[394775118,1763935850107,-1000.0,0.00040958,30]
[394775119,1763935850116,-376.727,0.00040958,30]
[394775120,1763935850127,-1000.0,0.00040958,90]
[394775121,1763935850136,-1000.0,0.00040958,90]
[394775122,1763935850145,-1000.0,0.00040958,90]
[394775123,1763935850154,-1000.0,0.00040958,90]
[394775124,1763935850163,-1000.0,0.00040958,90]
[394775125,1763935850172,-597.513,0.00040958,90]
[394775126,1763935850182,-150.0,0.00040958,2]
[394775127,1763935850191,-150.0,0.00040958,2]
[394775128,1763935850200,-152.01658252,0.00040958,2]
[394775129,1763935850209,-150.0,0.00040958,2]
[394775130,1763935850218,-150.0,0.00040958,2]
[394775131,1763935850227,-150.0,0.00040958,2]
[394775132,1763935850240,-150.0,0.00040958,2]
[394775133,1763935850249,-151.58399754,0.00040958,2]
[394775134,1763935850258,-150.0,0.00040958,2]
[394775135,1763935850267,-150.0,0.00040958,2]
[394775136,1763935850277,-150.0,0.00040958,2]
[394775137,1763935850287,-150.0,0.00040958,2]
[394775138,1763935850296,-150.0,0.00040958,2]
[394775139,1763935850305,-150.0,0.00040958,2]
[394775140,1763935850314,-151.9337633,0.00040958,2]
[394775141,1763935850323,-500.0,0.00040958,2]
[394775142,1763935850332,-150.0,0.00040958,2]
[394775143,1763935850341,-500.0,0.00040958,2]
[394775144,1763935850350,-500.0,0.00040958,2]
[394775145,1763935850359,-500.0,0.00040958,2]
[394775146,1763935850368,-150.0,0.00040958,2]
[394775147,1763935850377,-2019.0,0.00040958,2]
[394775148,1763935850386,-150.0,0.00040958,2]
[394775149,1763935850395,-500.0,0.00040958,2]
[394775150,1763935850404,-500.0,0.00040958,2]
[394775151,1763935850413,-150.0,0.00040958,2]
[394775152,1763935850422,-150.0,0.00040958,2]
[394775153,1763935850432,-150.0,0.00040958,2]
[394775154,1763935850441,-150.0,0.00040958,2]
[394775155,1763935850450,-500.0,0.00040958,2]
[394775156,1763935850459,-500.0,0.00040958,2]
[394775157,1763935850468,-154.13292291,0.00040958,2]
[394775158,1763935850476,-150.0,0.00040958,2]
[394775159,1763935850485,-153.35340794,0.00040958,2]
[394775160,1763935850494,-150.0,0.00040958,2]
[394775161,1763935850503,-150.0,0.00040958,2]
[394775162,1763935850512,-150.0,0.00040958,2]
[394775163,1763935850521,-154.80252342,0.00040958,2]
[394775164,1763935850529,-500.0,0.00040958,2]
[394775165,1763935850538,-150.0,0.00040958,2]
[394775166,1763935850547,-150.0,0.00040958,2]
[394775167,1763935850555,-500.0,0.00040958,2]
[394775168,1763935850564,-150.0,0.00040958,2]
[394775169,1763935850572,-500.0,0.00040958,2]
[394775170,1763935850581,-150.0,0.00040958,2]
[394775171,1763935850594,-500.0,0.00040958,2]
[394775172,1763935850603,-500.0,0.00040958,2]
[394775173,1763935850614,-500.0,0.0004097,8]
[394775174,1763935850623,-300.0,0.00040986,10]
[394775175,1763935850639,-266.56704873,0.0004099,7]
[394775176,1763935850649,-266.56704873,0.0004099,7]
[394775177,1763935850657,-331.5410801,0.00040995,8]
[394775178,1763935850666,-500.0,0.00040995,8]
[394775179,1763935850674,-537.29,0.00040995,8]
[394775180,1763935850682,-500.0,0.00040995,8]
[394775181,1763935850690,-535.92,0.00040995,8]
[394775182,1763935850880,-500.0,0.00040995,8]
[394775183,1763935850889,-500.0,0.00040995,8]
[394775184,1763935850899,-1432.38,0.00040995,8]
[394775185,1763935850910,-1587.79,0.00040995,8]
[394775186,1763935850919,-500.0,0.00040995,8]
[394775187,1763935850929,-500.0,0.00040995,8]
[394775188,1763935850938,-355.94614328,0.00040995,8]